Cogmind - Beta 13 @@@ ROGUE MODE // 2024.04.03 @ 20:14:05 Player: VC94 Result: Destroyed by P-60 Hacker with Shock Rifle Performance ------------- Evolutions (4) 2000 Regions Visited (6) 1200 Robots Destroyed (150) 750 Value Destroyed (4451) 4451 Prototype IDs (4) 80 Alien Tech Used (0) 0 Bonus (341) 341 TOTAL SCORE: 8822 Bonus ------- High Alert Combat Kills 341 Cogmind --------- Core Integrity 0/850 Matter 76/300 Energy 315/315 System Corruption 48% Temperature Cool (0) Movement Walking (260) Ox2 Location -6/Factory Parts ------- > --- POWER (2) -------- Light Ion Engine Improved Deuterium Engine > --- PROPULSION (5) --- Carbon-fiber Leg Wheel > --- UTILITY (5) ------ Advanced Heat Sink Improved Cooling System Medium Storage Unit > --- WEAPON (3) ------- Field Laser Flak Gun Missile Launcher > --- INVENTORY (10) --- Light Ion Engine Peak State ------------ > --- POWER ------------ Light Nuclear Core Improved Deuterium Engine > --- PROPULSION ------- Improved Carbon-fiber Leg Improved Titanium Leg Improved Titanium Leg Improved Titanium Leg Improved Titanium Leg > --- UTILITY ---------- Huge Storage Unit Improved Targeting Computer Hacking Suite > --- WEAPON ----------- Gauss Rifle Flak Gun Heavy Mace > --- INVENTORY -------- Improved Deuterium Engine Micro Nuclear Core Improved Cooling System Compact Battery Improved Sensor Array Advanced Targeting Computer Core Analyzer Matter Filter Advanced ECM Suite Reaction Control System Hardened Light Armor Plating Improved Shield Generator Improved EM Pulse Cannon Improved EM Pulse Cannon Improved EM Pulse Cannon Improved EM Pulse Cannon Improved EM Pulse Cannon High-powered Shotgun Flak Gun Flak Cannon Gauss Cannon Proton Missile Launcher Missile Launcher Remote Datajack Heavy Mace [Rating: 53] Favorites ----------- Power Light Nuclear Core Engine Improved Ion Engine Power Core Light Nuclear Core Reactor Light Antimatter Reactor Propulsion Titanium Leg Treads Armored Treads Leg Titanium Leg Wheel Wheel Hover Unit Improved Hover Unit Flight Unit Nuclear Pulse Thruster Utility Huge Storage Unit Device Drone Bay Storage Huge Storage Unit Processor Improved Targeting Computer Hackware Hacking Suite Protection Improved Light Armor Plating Weapon Advanced Beam Cannon Energy Gun Gatling Laser Energy Cannon Advanced Beam Cannon Ballistic Gun Flak Gun Ballistic Cannon Gauss Cannon Launcher Missile Launcher Special Weapon Mining Laser Impact Weapon Heavy Mace Slashing Weapon Greatsword Build | -11 -10 -9 -8 -8 -7 -6 ------- Run | Yrd Mat Mat Mat Sto Fac Fac Slots Evolved 8 | . . 2 2 . 2 2 Power 1 | . . . 1 . . . Propulsion 3 | . . 2 1 . . . Utility 3 | . . . . . 1 2 Weapon 1 | . . . . . 1 . Parts Attached 157 | 8 3 15 4 14 58 55 Power 30 | 1 1 2 2 3 10 11 Engine 16 | 1 1 2 2 1 1 8 Core 13 | . . . . 2 9 2 Reactor 1 | . . . . . . 1 Propulsion 50 | 2 1 9 1 5 15 17 Treads 2 | . . . . . 2 . Leg 28 | 2 1 4 1 5 10 5 Wheel 16 | . . 5 . . 3 8 Hover 3 | . . . . . . 3 Flight 1 | . . . . . . 1 Utility 25 | 2 . 2 . 1 8 12 Device 9 | 1 . . . . 3 5 Storage 8 | 1 . 1 . 1 2 3 Processor 2 | . . 1 . . 1 . Hackware 1 | . . . . . 1 . Protection 5 | . . . . . 1 4 Artifact . | . . . . . . . Weapon 52 | 3 1 2 1 5 25 15 Energy Gun 9 | 2 . 2 . 1 2 2 Energy Cannon 12 | . . . . 2 8 2 Ballistic Gun 13 | 1 . . 1 1 7 3 Ballistic Cannon 1 | . . . . . 1 . Launcher 8 | . . . . 1 3 4 Special Weapon 2 | . . . . . 1 1 Impact Weapon 4 | . 1 . . . 3 . Slashing Weapon 3 | . . . . . . 3 Piercing Weapon . | . . . . . . . Special Melee Weapon . | . . . . . . . Unidentified Prototypes 2 | . . . . 1 . 1 Corrupted Parts 4 | . . . . . . 4 System Corruption 28 | . . . . . . 28 Parts Lost 83 | . 3 7 . 4 33 36 Power 20 | . 1 1 . 1 9 8 Propulsion 29 | . 1 4 . 1 13 10 Utility 14 | . . 1 . . 4 9 Weapon 20 | . 1 1 . 2 7 9 Highest Loss Streak 17 | . 3 3 . 1 8 17 To Critical Strikes . | . . . . . . . Average Slot Usage (%) 87 | . 95 80 100 98 88 73 Engine 4 | . 11 8 18 10 1 6 Core 7 | . . . . 7 10 3 Treads 1 | . . . . . 1 2 Leg 27 | . 26 19 45 44 28 7 Wheel 3 | . . 14 . . 1 7 Device 2 | . 14 . . . 2 4 Storage 7 | . 14 11 9 9 7 6 Processor 6 | . . 4 9 9 6 2 Hackware 3 | . . . . . 4 5 Protection 1 | . . . . . . 6 Energy Gun 3 | . 7 9 10 3 1 2 Energy Cannon 5 | . . . . 6 6 2 Ballistic Gun 6 | . 14 3 7 7 7 2 Ballistic Cannon 1 | . . . . . 1 . Impact Weapon 1 | . 6 9 . . 1 . Naked Turns . | . . . . . . . Heaviest Build 117 | 14 14 29 38 101 117 113 Greatest Support 98 | 20 20 68 85 85 98 80 Greatest Overweight (x) 18 | 3 . 8 . 1 10 18 Average Overweight (x) 1 | . . . . . 1 . Largest Inventory Capacity 25 | 8 8 15 15 25 25 25 Average Capacity 20 | 7 8 12 15 22 25 13 Most Carried 25 | 6 7 15 15 25 25 22 Average Carried 17 | 3 6 8 14 20 22 9 Final Capacity 25 | 8 8 15 15 25 25 10 Final Carried 25 | 6 6 13 15 25 23 1 Class Distribution -------------------- 55% | Mutant 24% | Gunner 10% | Scavenger-Mutant 5% | Scavenger-Gunner 3% | Scavenger-Tank Dominant Class ---------------- Mutant | -10/Materials Mutant | -9/Materials Mutant | -8/Materials Mutant | -8/Storage Mutant | -7/Factory Scavenger-Mutant | -6/Factory Resources | -11 -10 -9 -8 -8 -7 -6 ----------- Run | Yrd Mat Mat Mat Sto Fac Fac Matter Collected 2654 | 286 35 138 44 386 1189 576 Remotely . | . . . . . . . Salvage Created 5637 | 160 198 305 76 950 2097 1851 Parts 304 | 11 5 18 2 63 112 93 Haulers Intercepted 1 | . . . . . 1 . Recyclers Shooed 2 | . . . . . 1 1 Parts Field Recycled . | . . . . . . . Retrieved Matter . | . . . . . . . Parts Self-Destructed . | . . . . . . . Prevented . | . . . . . . . Kills | -11 -10 -9 -8 -8 -7 -6 ------- Run | Yrd Mat Mat Mat Sto Fac Fac Combat Hostiles Destroyed 84 | . 3 8 . 19 33 21 Melee 10 | . 1 3 . . . 6 Guns 33 | . 1 5 . 10 15 2 Cannons 17 | . . . . 7 9 1 AOE 19 | . . . . 1 6 12 Classes Destroyed 12 | 3 1 2 . 3 3 . Worker 26 | 1 1 1 . 2 15 6 Builder 14 | . . . . . 8 6 Tunneler 6 | 3 1 . . . . 2 Hauler 1 | . . . . . 1 . Recycler 10 | 1 . . 1 . 5 3 Mechanic 3 | . . . . 1 1 1 Watcher 6 | . . . . 2 1 3 Swarmer 14 | . . 3 . 4 7 . Grunt 38 | . 3 2 . 7 13 13 Sentry 19 | . . 3 . 7 4 5 Hunter 5 | . . . . 1 3 1 Programmer 8 | . . . . . 6 2 Best Kill Streak 19 | 3 3 4 1 4 19 10 Combat Bots Only 5 | . 2 4 . 4 5 5 Max Kills in Single Turn 5 | 1 1 1 1 2 5 5 Gunslinging . | . . . . . . . Exploded 4 | . . . . 1 2 4 Melee 1 | . 1 1 . . . 1 Uniques/NPCs Destroyed . | . . . . . . . Combat | -11 -10 -9 -8 -8 -7 -6 -------- Run | Yrd Mat Mat Mat Sto Fac Fac Hostile Shots Fired 1088 | . 43 101 . 121 398 425 Missed 297 | . 10 27 . 30 101 129 Damage Taken 11079 | 14 418 894 . 1329 4239 4185 Core 1906 | . 85 179 . 243 537 862 Absorbed by Shields . | . . . . . . . Core Remaining (%) 59 | 100 66 55 . 55 23 . Volleys Fired 263 | 8 8 29 2 77 98 41 Largest 3 | 2 2 2 2 2 3 3 Hottest 207 | 60 60 101 68 136 207 197 Shots Fired 495 | 16 13 37 4 135 214 76 Gun 310 | 16 13 37 4 74 131 35 Cannon 152 | . . . . 59 71 22 Launcher 28 | . . . . 2 11 15 Special 5 | . . . . . 1 4 Kinetic 228 | 8 8 10 2 49 134 17 Thermal 140 | . . 19 . 59 38 24 Explosive 23 | . . . . 2 8 13 Electromagnetic 103 | 8 5 8 2 25 33 22 Robot Hit Streak 15 | 4 2 6 5 11 15 11 Robot Miss Streak 6 | 2 3 3 1 6 5 3 Penetration Max 1 | . . . . . 1 . Secondary Targets 4 | . . 1 . 1 2 . Max Gunslinging Chain 1 | . . 1 . 1 1 . Shots Hit Robots 395 | 9 16 33 3 89 165 80 Core Hits 273 | 6 3 14 1 38 130 81 Critical Kills 4 | . . 1 . 2 1 . Critical Parts Destroyed 13 | . 5 . . . 8 . Critical Strikes 23 | . 5 2 . 2 10 4 Meltdown 2 | . . . . 1 1 . Destroy 4 | . . . . 1 3 . Blast 1 | . . . . . 1 . Smash 12 | . 5 2 . . 5 . Sever 4 | . . . . . . 4 Melee Attacks 64 | . 10 12 . . 19 23 Impact 41 | . 10 12 . . 19 . Slashing 23 | . . . . . . 23 Piercing . | . . . . . . . Sneak Attacks 20 | . 2 1 . . 12 5 Combat Hostiles . | . . . . . . . Follow-up Attacks . | . . . . . . . Damage Inflicted 12558 | 165 419 564 50 1823 5041 4496 Guns 3887 | 119 100 310 50 830 1887 591 Cannons 2221 | . . . . 743 912 566 Explosions 3347 | 46 . . . 250 1153 1898 Melee 3031 | . 319 254 . . 1089 1369 Ramming . | . . . . . . . Kinetic 2927 | 27 48 45 35 508 1935 329 Thermal 2497 | 46 . 188 . 743 640 880 Explosive 2256 | . . . . 250 915 1091 Electromagnetic 1847 | 92 52 77 15 322 462 827 Impact 1662 | . 319 254 . . 1089 . Slashing 1369 | . . . . . . 1369 Piercing . | . . . . . . . Highest Corruption 47 | . . . . . 7 47 Average Corruption 10 | . . . . . 4 30 Corruption Purged . | . . . . . . . Corruption Blocked . | . . . . . . . Effects 112 | . . . . . 63 49 Message Errors 18 | . . . . . 12 6 Matter Fused 18 | . . . . . 10 8 Heat Flow Errors 15 | . . . . . 8 7 Energy Discharges 15 | . . . . . 8 7 Parts Rejected 5 | . . . . . 4 1 Parts Fused 1 | . . . . . . 1 Data Loss (minor) 20 | . . . . . 11 9 Data Loss (major) 7 | . . . . . 6 1 Misfires 2 | . . . . . 1 1 Alerts 2 | . . . . . 1 1 Weapon Failures 9 | . . . . . 2 7 Overload Shots . | . . . . . . . Overflow Damage 1510 | . 234 12 . 4 797 463 Projectiles 83 | . . . . 4 3 76 Explosions 156 | . . . . . 56 100 Melee 1271 | . 234 12 . . 738 287 Knockbacks 8 | . . . . . 8 . Impact 6 | . . . . . 6 . Kinetic 2 | . . . . . 2 . Secondary . | . . . . . . . Self-Inflicted Damage 656 | 15 . . . 15 97 529 Shots 16 | 1 . . . 1 2 12 Rammed . | . . . . . . . Targets Rammed . | . . . . . . . Kicked . | . . . . . . . Crushed . | . . . . . . . Highest Temperature 582 | 32 106 350 28 460 511 582 Average Temperature 141 | 17 57 163 16 139 126 186 Received Heat Transfer 3087 | . 240 303 . 630 1062 852 Effects 38 | . . 1 . 9 12 16 Shutdowns 10 | . . . . 1 3 6 Energy Bleed 4 | . . 1 . . 1 2 Interference 9 | . . . . 4 5 . Matter Decay 3 | . . . . 1 . 2 Short Circuit 4 | . . . . 2 . 2 Damage (minor) 4 | . . . . 1 3 . Damage (major) 4 | . . . . . . 4 Siege Activations . | . . . . . . . Robots Corrupted 2 | . 1 . . . 1 . Combat Hostiles 2 | . 1 . . . 1 . Parts Fried 19 | . 3 1 . 1 11 3 Impact Corruptions 34 | . 7 1 . . 26 . Robots Melted 2 | . . . . 1 1 . Combat Hostiles 2 | . . . . 1 1 . Parts Melted 7 | . . 2 . 3 1 1 Heat Transferred 4177 | 50 . 481 . 1332 1106 1208 Parts Sabotaged . | . . . . . . . Parts Stolen . | . . . . . . . Parts Stripped . | . . . . . . . Power Chain Reactions 5 | 1 . . . . 2 2 Alert | -11 -10 -9 -8 -8 -7 -6 ------- Run | Yrd Mat Mat Mat Sto Fac Fac Peak Influence 790 | 25 91 138 38 363 586 790 Initial 287 | . 16 38 33 15 164 287 Average 251 | 8 55 76 34 178 222 569 Maximum Alert Level 3 | . . . . 1 2 3 Low Security (%) 54 | 100 100 100 100 53 60 . Level 1 15 | . . . . 46 13 8 Level 2 28 | . . . . . 25 85 Level 3 1 | . . . . . . 6 Level 4 . | . . . . . . . Level 5 . | . . . . . . . High Security . | . . . . . . . Max Security . | . . . . . . . Squads Dispatched 20 | . 1 1 . 3 9 6 Investigation 2 | . . . . 1 1 . Extermination 10 | . . . . . 7 3 Reinforcement 7 | . 1 1 . 1 1 3 Assault . | . . . . . . . Garrison 1 | . . . . 1 . . Intercept . | . . . . . . . Searches Triggered . | . . . . . . . Construction Impeded 2 | . . . . . 1 1 Haulers Reinforced 1 | . . . . . . 1 Active Scanning Responses . | . . . . . . . Cargo Convoy Interrupts . | . . . . . . . Stealth | -11 -10 -9 -8 -8 -7 -6 --------- Run | Yrd Mat Mat Mat Sto Fac Fac Distress Signals 6 | . . 1 . 2 . 3 Communications Jammed . | . . . . . . . Distress Signals . | . . . . . . . Times Spotted 131 | . 5 10 . 29 52 35 Peak Tracking Total 8 | . 4 3 . 4 6 8 Tactical Retreats 6 | . . . . 2 4 . Traps | -11 -10 -9 -8 -8 -7 -6 ------- Run | Yrd Mat Mat Mat Sto Fac Fac Traps Triggered 7 | . . 1 . 2 2 2 Indirectly . | . . . . . . . Trap Hack Attempts . | . . . . . . . Triggered . | . . . . . . . Disarmed . | . . . . . . . Reprogrammed . | . . . . . . . Reused . | . . . . . . . Traps Extracted . | . . . . . . . Installed . | . . . . . . . Triggered . | . . . . . . . Machines | -11 -10 -9 -8 -8 -7 -6 ---------- Run | Yrd Mat Mat Mat Sto Fac Fac Machines Disabled 25 | . . . . 3 6 16 Max in Single Turn 8 | . . . . 1 1 8 Machines Repaired . | . . . . . . . Machines Dismantled . | . . . . . . . Machines Sabotaged . | . . . . . . . Overloaded Fab Kills . | . . . . . . . Hacking | -11 -10 -9 -8 -8 -7 -6 --------- Run | Yrd Mat Mat Mat Sto Fac Fac Machines Accessed 13 | . . 1 2 7 2 1 Terminals 10 | . . 1 2 5 1 1 Fabricators 1 | . . . . . 1 . Repair Stations 2 | . . . . 2 . . Recycling Units . | . . . . . . . Scanalyzers . | . . . . . . . Garrison Access . | . . . . . . . Total Hacks 24 | . . 1 3 17 2 1 Successful 13 | . . 1 1 9 1 1 Failed 11 | . . . 2 8 1 . Catastrophic 2 | . . . . 1 1 . Database Lockouts . | . . . . . . . Manual . | . . . . . . . Terminals 17 | . . 1 3 11 1 1 Fabricators 1 | . . . . . 1 . Repair Stations 6 | . . . . 6 . . Recycling Units . | . . . . . . . Scanalyzers . | . . . . . . . Garrison Access . | . . . . . . . Terminal Hacks 10 | . . 1 1 7 . 1 Record 3 | . . . 1 2 . . Prototype ID Bank 1 | . . 1 . . . . Open Door 3 | . . . . 3 . . Open DSF 1 | . . . . . . 1 Hauler Manifests 1 | . . . . 1 . . Zone Layout 1 | . . . . 1 . . Fabricator Hacks 1 | . . . . . 1 . Network Status 1 | . . . . . 1 . Repair Station Hacks 2 | . . . . 2 . . Scan Component 2 | . . . . 2 . . Recycling Unit Hacks . | . . . . . . . Scanalyzer . | . . . . . . . Garrison Access Hacks . | . . . . . . . Unauthorized Hacks . | . . . . . . . Terminals . | . . . . . . . Fabricators . | . . . . . . . Repair Stations . | . . . . . . . Recycling Units . | . . . . . . . Scanalyzers . | . . . . . . . Garrison Access . | . . . . . . . Data Cores Recovered . | . . . . . . . Used . | . . . . . . . Hacking Detections 7 | . . . . 6 1 . Full Trace Events 2 | . . . . 2 . . Feedback Events . | . . . . . . . Feedback Blocked . | . . . . . . . Robot Schematics Acquired . | . . . . . . . Robots Built . | . . . . . . . Authchips . | . . . . . . . Time . | . . . . . . . Total Robot Build Rating . | . . . . . . . Part Schematics Acquired . | . . . . . . . Parts Built . | . . . . . . . Authchips . | . . . . . . . Time . | . . . . . . . Total Part Build Rating . | . . . . . . . Parts Repaired . | . . . . . . . Time . | . . . . . . . Parts Recycled . | . . . . . . . Recycled Matter . | . . . . . . . Retrieved Matter . | . . . . . . . Retrieved Components . | . . . . . . . Parts Scanalyzed . | . . . . . . . Part Schematics Acquired . | . . . . . . . Parts Damaged . | . . . . . . . Bothacking | -11 -10 -9 -8 -8 -7 -6 ------------ Run | Yrd Mat Mat Mat Sto Fac Fac Used RIF Installer . | . . . . . . . Robots Hacked 1 | . . . . . 1 . Non-combat 1 | . . . . . 1 . Combat . | . . . . . . . Robot Hacks Applied 1 | . . . . . 1 . find_chute 1 | . . . . . 1 . Relay Couplers Released . | . . . . . . . Fabnet Peak Effective % . | . . . . . . . Robots Rewired . | . . . . . . . Allies Hacked . | . . . . . . . Hacks Repelled . | . . . . . . . Allies | -11 -10 -9 -8 -8 -7 -6 -------- Run | Yrd Mat Mat Mat Sto Fac Fac Total Allies . | . . . . . . . Largest Group . | . . . . . . . Highest-Rated Group . | . . . . . . . Highest-Rated Ally . | . . . . . . . Total Orders . | . . . . . . . Ally Attacks . | . . . . . . . Total Damage . | . . . . . . . Kills . | . . . . . . . Allies Corrupted . | . . . . . . . Allies Melted . | . . . . . . . Intel | -11 -10 -9 -8 -8 -7 -6 ------- Run | Yrd Mat Mat Mat Sto Fac Fac Robot Analysis Total . | . . . . . . . Derelict Logs Recovered . | . . . . . . . Drone Launches 4 | . . . . . 4 . Drone Recoveries 2 | . . . . . 2 . Exploration | -11 -10 -9 -8 -8 -7 -6 ------------- Run | Yrd Mat Mat Mat Sto Fac Fac Turns Passed 7539 | 156 239 445 238 1176 3977 1308 Spaces Moved 3153 | 94 152 236 168 523 1450 530 Core 28 | 10 . 9 . . . 9 Treads 172 | . . . . . 109 63 Legs 2558 | 84 152 103 168 523 1306 222 Wheels 372 | . . 124 . . 35 213 Hover 7 | . . . . . . 7 Flight 16 | . . . . . . 16 Fastest Speed 50 | 50 120 80 130 130 190 50 Average Speed 194 | 118 120 120 130 174 238 180 Slowest Speed 1480 | 200 120 450 130 200 570 1480 Overloaded Moves . | . . . . . . . Propulsion Burnouts . | . . . . . . . Robots Hopped . | . . . . . . . Cave-ins Triggered 1 | . . . . . . 1 Exploration Rate (%) 28 | 4 27 29 14 69 41 18 Regions Visited 6 Branch Regions 1 Pre-discovered Areas . | . . . . . . . Known Exits Taken . | . . . . . . . Unknown Exits Taken 6 | 1 1 1 1 1 1 . Scrap Searched . | . . . . . . . Spaces Dug . | . . . . . . . Terrain Destroyed 222 | 4 . . . 13 27 178 Melee . | . . . . . . . Projectile 2 | . . . . . 2 . AOE 220 | 4 . . . 13 25 178 Terrain Rammed . | . . . . . . . Walls Destroyed . | . . . . . . . Machines Disabled . | . . . . . . . Actions | -11 -10 -9 -8 -8 -7 -6 --------- Run | Yrd Mat Mat Mat Sto Fac Fac Total 3996 | 124 179 341 185 664 1746 757 Wait 136 | . 4 26 . 17 41 48 Move 3147 | 93 151 235 167 522 1449 530 Hop . | . . . . . . . Pick Up 168 | 14 3 20 8 23 56 44 Fast Attach 4 | . . . . . 4 . Attach 116 | 7 3 10 3 6 40 47 Detach 2 | . . . . . . 2 Swap 37 | 1 . 5 1 8 14 8 Drop 59 | 1 . 4 4 11 25 14 Fire 263 | 8 8 29 2 77 98 41 Melee 64 | . 10 12 . . 19 23 Ram . | . . . . . . . Kick . | . . . . . . . Crush . | . . . . . . . Escape Stasis . | . . . . . . . Rewire . | . . . . . . . Trap . | . . . . . . . Miscellaneous . | . . . . . . . Route ------- -11/Scrapyard -10/Materials -9/Materials -8/Materials -8/Storage -7/Factory -6/Factory History --------- Turn | Location | Event 14 | -11/Scrapyard | Discovered new exit (range 15) 157 | -11/Scrapyard | Entered Materials 306 | -10/Materials | Build established: Mutant 336 | -10/Materials | Lost 3 parts (1p1n1w) 370 | -10/Materials | Discovered new exit (range 13) 396 | -10/Materials | Entered another Materials area 396 | -9/Materials | Evolved 2 slots: Propulsion x2 561 | -9/Materials | Lost 3 parts (1p1n1w) 754 | -9/Materials | Discovered new exit (range 9) 841 | -9/Materials | Entered another Materials area 841 | -8/Materials | Evolved 2 slots: Power x1, Propulsion x1 845 | -8/Materials | Discovered new exit (range 5) 1079 | -8/Materials | Entered Storage 2206 | -8/Storage | Discovered new exit (range 16) 2222 | -8/Storage | Garrison activated, responded to threat 2255 | -8/Storage | Entered Factory 2255 | -7/Factory | Evolved 2 slots: Utility x1, Weapon x1 2772 | -7/Factory | Build established: Gunner 3409 | -7/Factory | Lost 6 parts (2p2n1u1w) 4361 | -7/Factory | Build established: Mutant 4477 | -7/Factory | Lost 4 parts (2p2n) 5111 | -7/Factory | Lost 8 parts (1p4n1u2w) 5200 | -7/Factory | Core integrity fell below 50% 5273 | -7/Factory | Lost 6 parts (1p3n1u1w) 5969 | -7/Factory | Discovered new exit (range 16) 6232 | -7/Factory | Entered another Factory area 6232 | -6/Factory | Evolved 2 slots: Utility x2 6601 | -6/Factory | Lost 3 parts (1p1u1w) 6722 | -6/Factory | System corruption reached 10% 6731 | -6/Factory | Lost 7 parts (1p1n2u3w) 6875 | -6/Factory | Lost 4 parts (2p1n1u) 6933 | -6/Factory | Core integrity fell below 50% 6976 | -6/Factory | Lost 3 parts (1n2w) 7001 | -6/Factory | Build established: Scavenger-Mutant 7353 | -6/Factory | System corruption reached 30% 7428 | -6/Factory | Crushed by falling debris 7465 | -6/Factory | Core integrity fell below 20% 7515 | -6/Factory | Lost 17 parts (3p6n5u3w) 7540 | -6/Factory | Destroyed by P-60 Hacker with Shock Rifle Last Messages --------------- K-01 Serf collects debris. R-10 Processor collects Unknown Hover Unit. U-05 Engineer builds a Wall. U-05 Engineer lays Concrete. U-05 Engineer builds a Wall. R-10 Processor collects Unknown Hover Unit. K-01 Serf collects debris. Acquired Lgt. Ion Engine. R-10 Processor collects Target Analyzer. K-01 Serf collects debris. U-05 Engineer builds a Wall. Acquired Lgt. Ion Engine. R-10 Processor collects Remote Datajack. Acquired Carbon-fiber Leg. U-05 Engineer lays Concrete. System corrupted: Heat flow error (+203). K-01 Serf collects debris. Acquired 13 matter. K-01 Serf collects debris. [Achievement: 5k Club] Map ----- +----------------------------------------------------+ | ?????????????????????????????????????????????????? | | ?????????????????????????????????????????????????? | | ????????????????????????? ???????????????????? | | ????????????????????????# #??????????????????? | | ????????????????????? #??????????????????? | | ???????????????????# ##?????????????????? | | ?????????????????? % T??????????????????? | | ?????????????????? ??????????????????? | | ??????????????????? % #??????????????????? | | ??????????????? #??????????????????? | | ???????????????? u #???####???????????? | | ????????????????? # #?? """ #?????????? | | ? ???????????????? #? [ "T" #?????????? | | #????????????????# #? " " #?????????? | | #????????????????# # #?????????? | | #????????????????# # #?????????? | | #????????????????#% k / ""?????????????? | | #???############## #??????????????????? | | ? #???# # [ =#??????????????????? | | ?# #???# """"""" # = #??????????????????? | | ?# #???# """"""" # #####+######???????? | | ?+ ##### """""""=# ?????? | | ?# + """""" %#%% % ?????? | | ## ##### ! +! ?????? | | ^ #???# """""" %#p g ??????? | | #???# """""" *#@ ??????? | | ##### """"" " # ############???????? | | + """"""" # =#%* "?????????? | | ############ # =# = ?????????? | | ## !#k##### ??????????? | | """"""""" ###############%## ??????????? | | #????????????##k# ???????????? | | """"""""" #???????????? # # " ????????????? | | #???????????? # #### " ????????????? | | """"""""" #???????????? # #???"""" ??????????????? | | #???????????? # ???? ????????????????? | | """"""""" #???????????? # ??????????????????????? | | #?????????????? ??????????????????????? | | """"""""" #?????????????? ??????????????????????? | | #?????????????? ???????????????????????? | | #?????????????? ???????????????????????? | | #########+#??????????????????????????????????????? | | #?# #??????????????????????????????????????? | | """ #?# #??????????????????????????????????????? | | """ #?# #??????????????????????????????????????? | | R" #?# #??????????????????????????????????????? | | """ #?# #??????????????????????????????????????? | | ^ #?# #??????????????????????????????????????? | | #?# #??????????????????????????????????????? | | ^ #?# #??????????????????????????????????????? | +----------------------------------------------------+ Best States ------------- Heat Dissipation 83 Energy Generation 32 Energy Capacity 420 Matter Stores 300 Matter Capacity 300 Sight Range 16 Terrain Scan Range 16 Terrain Scan Density 10 Armor Coverage 375 Resistance: KI 30 Phase Shifting 5 Evasion (%) 60 Targeting Accuracy 6 Core Analysis 6 Recoil Reduction 2 Force Boost 20 Offensive Hacking 10 Item Schematics ----------------- None Robot Schematics ------------------ None Fabricated ------------ Nothing Alien Tech Used ----------------- None Achievements -------------- 5k Club Made in Tau Ceti IV Power Corrupts Serviceable Loadout Troublemaker Universal Adapter Unlikely Earthworm Challenges ------------ None Game ------ Seed PulseMiningImmobilizer Manual? 0 Play Time 01:12:53 Cumulative 5.7 hours Start 2024.04.03 @ 19:01:58 End 2024.04.03 @ 20:14:05 Sessions 1 Manual Loads 0 Difficulty Rogue Special Mode None Game No. 15 Rogue 15 Adventurer 0 Explorer 0 Win Type - Total 0 Types 0/0/0/0/0/0/0/0/0 Lore% 3 Gallery% 12 Achievement% 10 Wizard Run 0 Options --------- Layout 1 ASCII 0 Keyboard 0 Movement Mouse Keybinds 0 Fullscreen 1 Font 32/SmallcapsGlow Map View 50x40 Zoom Use 0% Tactical HUD 0 Map Filters NONE Filters NONE Steam 1 RUN: 891424b4-95af-4765-b069-dc4fda433180